lending/lending_fUSD_20240705
["ID","MTS","AMOUNT","RATE_DAILY","PERIOD"]
[331273830,1720170637440,-1611.34,0.00015854,2]
[331273831,1720170637454,-152.91,0.00016041,2]
[331273832,1720170637465,-24720.73753228,0.00016172,2]
[331273833,1720170637475,-167.4,0.00016804,2]
[331273834,1720170637485,-160.27755312,0.00016806,2]
[331273835,1720170637496,-1658.0,0.00016906,2]
[331273836,1720170637507,-192.0,0.00016946,2]
[331273837,1720170637517,-152.35,0.00017038,2]
[331273838,1720170637528,-200.0,0.00017061,2]
[331273839,1720170637538,-813.0,0.00017071,2]
[331273840,1720170637548,-1299.0,0.00017071,2]
[331273841,1720170637558,-204.0,0.00017071,2]
[331273842,1720170637569,-3224.0,0.00017071,2]
[331273843,1720170637579,-283.0,0.00017071,2]
[331273844,1720170637589,-1988.0,0.00017071,2]
[331273845,1720170637599,-547.0,0.00017071,2]
[331273846,1720170637609,-1199.0,0.00017079,2]
[331273847,1720170637623,-29758.86946125,0.00017079,2]
[331273848,1720170637638,-8484.13053875,0.00017079,2]
[331273849,1720170637648,-1664.0,0.00017079,2]
[331273850,1720170637659,-291.0,0.00017079,2]
[331273851,1720170637670,-5811.0,0.00017079,2]
[331273852,1720170637680,-5177.0,0.00017079,2]
[331273853,1720170637692,-150.307,0.00017108,2]
[331273854,1720170637704,-206.085,0.00017108,2]
[331273855,1720170637714,-150.446,0.00017108,2]
[331273856,1720170637725,-4743.59343329,0.00017139,2]
[331273857,1720170637734,-1830.0,0.00017186,2]
[331273858,1720170637745,-823.0,0.00017307,2]
[331273859,1720170637756,-150.0,0.000174,2]
[331273860,1720170637766,-607.72,0.00017413,2]
[331273861,1720170637776,-235.759,0.00017538,2]
[331273862,1720170637786,-250.0,0.00017566,2]
[331273863,1720170637797,-2209.85,0.00017582,2]
[331273864,1720170637810,-1125.0,0.000176,2]
[331273865,1720170637821,-150.0,0.00017742,2]
[331273866,1720170637830,-1951.37,0.00017756,2]
[331273867,1720170637840,-160.0,0.00017778,2]
[331273868,1720170637851,-595.0,0.000178,2]
[331273869,1720170637861,-1000.0,0.00017853,2]
[331273870,1720170637871,-8584.15151133,0.00017948,2]
[331273871,1720170637885,-1171.32115809,0.00017948,2]
[331273872,1720170637898,-985.42,0.00017948,2]
[331273873,1720170637913,-13159.10733058,0.00017948,2]
[331273874,1720170637924,-167.4,0.00018097,2]
[331273875,1720170637935,-235.759,0.00018459,2]
[331273876,1720170637946,-250.0,0.0001877,2]
[331273877,1720170637959,-167.59,0.00018803,2]
[331273878,1720170637970,-193.62934922,0.00018864,2]
[331273879,1720170637980,-1054.51068328,0.00018899,2]
[331273880,1720170637992,-155.0,0.00018919,2]
[331273881,1720170638002,-1152.0,0.00018978,2]
[331273882,1720170638012,-227.17477303,0.00018999,2]
[331273883,1720170638023,-173.91008171,0.00018999,2]
[331273884,1720170638033,-300.0,0.00019,2]
[331273885,1720170638043,-5000.0,0.00019,2]
[331273886,1720170638053,-1630.1845532,0.00019177,2]
[331273887,1720170638063,-155.0,0.00019177,2]
[331273888,1720170638073,-155.0,0.00019177,2]
[331273889,1720170638082,-250.0,0.00019178,2]
[331273890,1720170638093,-528.99378221,0.00019229,2]
[331273891,1720170638103,-160.0,0.00019253,2]
[331273892,1720170638113,-155.0,0.0001935,2]
[331273893,1720170638124,-155.0,0.0001935,2]
[331273894,1720170638136,-155.0,0.00019354,2]
[331273895,1720170638147,-167.4,0.00019389,2]
[331273896,1720170638159,-235.759,0.00019476,2]
[331273897,1720170638170,-607.72,0.00019677,2]
[331273898,1720170638180,-2366.5058,0.000197,2]
[331273899,1720170638190,-1007.8326,0.000197,2]
[331273900,1720170638201,-21062.0,0.00019856,2]
[331273901,1720170638213,-1658.0,0.00019906,2]
[331273902,1720170638224,-450.95794745,0.00019964,2]
[331273903,1720170638234,-292.96264787,0.00019964,2]
[331273904,1720170638244,-525.285719,0.00019964,2]
[331273905,1720170638254,-1760.19550154,0.00019964,2]
[331273906,1720170638264,-1399.54620502,0.00019964,2]
[331273907,1720170638287,-155.11456855,0.00019964,2]
[331273908,1720170638297,-5886.00336019,0.0001999,2]
[331273909,1720170638307,-307.59113526,0.0001999,2]
[331273910,1720170638317,-370.76260341,0.0001999,2]
[331273911,1720170638329,-1494.4651745,0.0001999,2]
[331273912,1720170638339,-1013.98802103,0.0001999,2]
[331273913,1720170638350,-691.14739766,0.0001999,2]
[331273914,1720170638360,-593.20627358,0.0001999,2]
[331273915,1720170638370,-292.57856873,0.0001999,2]
[331273916,1720170638380,-155.0,0.0001999,2]
[331273917,1720170638390,-1256.98260252,0.0001999,2]
[331273918,1720170638400,-296.98016859,0.0001999,2]
[331273919,1720170638411,-276.18433692,0.0001999,2]
[331273920,1720170638421,-196.09224429,0.0001999,2]
[331273921,1720170638430,-372.41325127,0.00019997,2]
[331273922,1720170638441,-92.51518234,0.0002,2]
[331273923,1720170638455,-234.86163332,0.0002,2]
[331273924,1720170638465,-265.13836668,0.0002,2]
[331273925,1720170638478,-758.46063196,0.0002,2]
[331273926,1720170638491,-253.02089224,0.0002,2]
[331273927,1720170638501,-370.8679574,0.0002,2]
[331273931,1720170638519,-91.33387697,0.0002,2]
[331273933,1720170638535,-279.53408043,0.0002,2]
[331273934,1720170638546,-370.8679574,0.0002,2]
[331273935,1720170638557,-370.8679574,0.0002,2]
[331273937,1720170638570,-370.8679574,0.0002,2]
[331273938,1720170638580,-370.8679574,0.0002,2]
[331273939,1720170638591,-370.8679574,0.0002,2]
[331273940,1720170638601,-370.8679574,0.0002,2]
[331273941,1720170638612,-226.54322514,0.0002,2]
[331273942,1720170638628,-144.32473226,0.0002,2]
[331273943,1720170638638,-370.8679574,0.0002,2]
[331273944,1720170638648,-357.80731034,0.0002,2]
[331273945,1720170639166,-4677.9289797,0.00012826,2]
[331273946,1720170639687,-522.8693203,0.00012826,2]
[331273947,1720170639699,-328.50066625,0.00013472,2]
[331273948,1720170639711,-300.27832461,0.00014911,2]
[331273949,1720170639723,-155.0,0.00019964,2]
[331273950,1720170639734,-730.03551561,0.00019964,2]
[331273951,1720170639746,-433.27749902,0.00019964,2]
[331273952,1720170639759,-13.06064706,0.0002,2]
[331273953,1720170639774,-370.8679574,0.0002,2]
[331273954,1720170639787,-370.8679574,0.0002,2]
[331273955,1720170639799,-370.8679574,0.0002,2]
[331273956,1720170639812,-370.8679574,0.0002,2]
[331273957,1720170639828,-370.8679574,0.0002,2]
[331273958,1720170639841,-370.8679574,0.0002,2]
[331273959,1720170639854,-370.8679574,0.0002,2]
[331273960,1720170639868,-370.8679574,0.0002,2]
[331273961,1720170639882,-370.8679574,0.0002,2]
[331273962,1720170639894,-370.8679574,0.0002,2]
[331273963,1720170639907,-370.8679574,0.0002,2]
[331273964,1720170639919,-370.8679574,0.0002,2]
[331273965,1720170639930,-370.8679574,0.0002,2]
[331273966,1720170639941,-370.8679574,0.0002,2]
[331273967,1720170639952,-370.8679574,0.0002,2]
[331273968,1720170639962,-370.8679574,0.0002,2]
[331273969,1720170639973,-370.8679574,0.0002,2]
[331273970,1720170639984,-370.8679574,0.0002,2]
[331273971,1720170639995,-370.8679574,0.0002,2]
[331273972,1720170640008,-370.8679574,0.0002,2]
[331273973,1720170640020,-370.8679574,0.0002,2]
[331273974,1720170640032,-370.8679574,0.0002,2]
[331273975,1720170640044,-370.8679574,0.0002,2]
[331273976,1720170640056,-370.8679574,0.0002,2]
[331273977,1720170640068,-370.8679574,0.0002,2]
[331273978,1720170640081,-370.8679574,0.0002,2]
[331273979,1720170640091,-370.8679574,0.0002,2]
[331273980,1720170640102,-370.8679574,0.0002,2]
[331273981,1720170640112,-370.8679574,0.0002,2]
[331273982,1720170640123,-370.8679574,0.0002,2]
[331273983,1720170640134,-370.8679574,0.0002,2]
[331273984,1720170640146,-370.8679574,0.0002,2]
[331273985,1720170640156,-370.8679574,0.0002,2]
[331273986,1720170640167,-370.8679574,0.0002,2]
[331273987,1720170640178,-370.8679574,0.0002,2]
[331273988,1720170640189,-370.8679574,0.0002,2]
[331273989,1720170640200,-370.8679574,0.0002,2]
[331273990,1720170640212,-370.8679574,0.0002,2]
[331273991,1720170640224,-370.8679574,0.0002,2]
[331273992,1720170640234,-370.8679574,0.0002,2]
[331273993,1720170640246,-370.8679574,0.0002,2]
[331273994,1720170640256,-370.8679574,0.0002,2]
[331273995,1720170640268,-370.8679574,0.0002,2]
[331273996,1720170640280,-370.8679574,0.0002,2]
[331273997,1720170640290,-370.8679574,0.0002,2]
[331273998,1720170640301,-370.8679574,0.0002,2]
[331273999,1720170640315,-370.8679574,0.0002,2]
[331274002,1720170640326,-370.8679574,0.0002,2]
[331274005,1720170640337,-370.8679574,0.0002,2]
[331274007,1720170640348,-370.8679574,0.0002,2]
[331274009,1720170640359,-370.8679574,0.0002,2]
[331274010,1720170640370,-370.8679574,0.0002,2]
[331274011,1720170640381,-370.8679574,0.0002,2]
[331274013,1720170640393,-370.8679574,0.0002,2]
[331274015,1720170640404,-370.8679574,0.0002,2]
[331274017,1720170640415,-370.8679574,0.0002,2]
[331274020,1720170640427,-370.8679574,0.0002,2]
[331274021,1720170640438,-370.8679574,0.0002,2]
[331274022,1720170640448,-370.8679574,0.0002,2]
[331274023,1720170640460,-370.8679574,0.0002,2]
[331274024,1720170640472,-370.8679574,0.0002,2]
[331274025,1720170640484,-370.8679574,0.0002,2]
[331274026,1720170640495,-370.8679574,0.0002,2]
[331274027,1720170640506,-370.8679574,0.0002,2]
[331274028,1720170640517,-370.8679574,0.0002,2]
[331274029,1720170640528,-370.8679574,0.0002,2]
[331274030,1720170640538,-370.8679574,0.0002,2]
[331274031,1720170640555,-370.8679574,0.0002,2]
[331274032,1720170640566,-370.8679574,0.0002,2]
[331274033,1720170640577,-370.8679574,0.0002,2]
[331274034,1720170640588,-370.8679574,0.0002,2]
[331274035,1720170640600,-370.8679574,0.0002,2]
[331274036,1720170640611,-370.8679574,0.0002,2]
[331274037,1720170640625,-370.8679574,0.0002,2]
[331274038,1720170640636,-370.8679574,0.0002,2]
[331274039,1720170640647,-370.8679574,0.0002,2]
[331274040,1720170640660,-370.8679574,0.0002,2]
[331274041,1720170640673,-370.8679574,0.0002,2]
[331274042,1720170640684,-370.8679574,0.0002,2]
[331274043,1720170640696,-370.8679574,0.0002,2]
[331274044,1720170640707,-370.8679574,0.0002,2]
[331274045,1720170640719,-370.8679574,0.0002,2]
[331274046,1720170640730,-370.8679574,0.0002,2]
[331274047,1720170640741,-370.8679574,0.0002,2]
[331274048,1720170640752,-370.8679574,0.0002,2]
[331274049,1720170640763,-370.8679574,0.0002,2]
[331274050,1720170640776,-370.8679574,0.0002,2]
[331274051,1720170640787,-370.8679574,0.0002,2]
[331274052,1720170640798,-370.8679574,0.0002,2]
[331274053,1720170640809,-160.0,0.00020001,2]
[331274054,1720170640820,-795.254,0.00020071,2]
[331274055,1720170640831,-283.0,0.00020071,2]
[331274056,1720170640842,-367.432,0.00020071,2]
[331274057,1720170640853,-1199.0,0.00020079,2]
[331274058,1720170640864,-38243.0,0.00020079,2]
[331274059,1720170640875,-1664.0,0.00020079,2]
[331274060,1720170640886,-291.0,0.00020079,2]
[331274061,1720170640897,-5811.0,0.00020079,2]
[331274062,1720170640907,-5177.0,0.00020079,2]
[331274063,1720170640918,-1000.0,0.00020085,2]
[331274064,1720170640928,-350.0,0.0002014,2]
[331274065,1720170640939,-1253.074,0.00020186,2]
[331274066,1720170640949,-224.6932324,0.00020266,2]
[331274067,1720170640959,-500.0,0.00020514,2]
[331274068,1720170640970,-500.0,0.00020515,2]
[331274069,1720170640980,-504.1669157,0.00020569,2]
[331274070,1720170640990,-169.41225716,0.00020569,2]
[331274071,1720170641000,-163.72600369,0.0002058,2]
[331274072,1720170641011,-7500.0,0.0002058,2]
[331274073,1720170641021,-194.54721008,0.0002058,2]
[331274074,1720170641033,-185.66455592,0.00020585,2]
[331274075,1720170641043,-1539.08235506,0.00020585,2]
[331274076,1720170641054,-1000.0,0.000206,7]
[331274077,1720170641065,-235.759,0.00020604,2]
[331274078,1720170641075,-169.41225713,0.00020652,2]
[331274079,1720170641086,-800.0,0.00020658,2]
[331274080,1720170641096,-800.0,0.00020658,2]
[331274081,1720170641108,-7475.69920319,0.00020659,3]
[331274082,1720170641119,-150.83,0.00020659,2]
[331274083,1720170641129,-97184.0896415,0.0002066,3]
[331274084,1720170641140,-191.6866948,0.0002066,2]
[331274085,1720170641151,-150.83,0.0002066,2]
[331274087,1720170641164,-150.83,0.0002066,2]
[331274088,1720170641174,-150.83,0.0002066,2]
[331274090,1720170641185,-150.83,0.0002066,2]
[331274092,1720170641196,-14951.3984064,0.00020669,3]
[331274093,1720170641206,-500.0,0.00020669,2]
[331274094,1720170641217,-500.0,0.00020669,2]
[331274095,1720170641228,-500.0,0.00020669,2]
[331274096,1720170641238,-500.0,0.00020669,2]
[331274097,1720170641249,-500.0,0.00020669,2]
[331274098,1720170641261,-500.0,0.00020669,2]
[331274099,1720170641274,-478.94522347,0.00020669,2]
[331274100,1720170641297,-500.0,0.00020669,2]
[331274101,1720170641307,-500.0,0.00020669,2]
[331274102,1720170641318,-500.0,0.00020669,2]
[331274103,1720170641329,-500.0,0.00020669,2]
[331274104,1720170641339,-570.70760071,0.00020669,2]
[331274105,1720170641351,-500.0,0.00020669,2]
[331274106,1720170641361,-500.0,0.00020669,2]
[331274107,1720170641372,-500.0,0.00020669,2]
[331274108,1720170641384,-500.0,0.00020669,2]
[331274109,1720170641395,-377.57630216,0.00020669,2]
[331274110,1720170641406,-500.0,0.00020669,2]
[331274111,1720170641418,-500.0,0.00020669,2]
[331274112,1720170641430,-151.62948771,0.00020669,2]
[331274113,1720170641440,-500.0,0.00020669,2]
[331274114,1720170641452,-500.0,0.00020669,2]
[331274115,1720170641462,-500.0,0.00020669,2]
[331274116,1720170641473,-261.77405619,0.00020669,2]
[331274117,1720170641483,-500.0,0.00020669,2]
[331274118,1720170641492,-500.0,0.00020669,2]
[331274119,1720170641502,-500.0,0.00020669,2]
[331274120,1720170641511,-500.0,0.00020669,2]
[331274121,1720170641521,-256.61513988,0.00020669,2]
[331274122,1720170641531,-500.0,0.00020669,2]
[331274123,1720170641541,-500.0,0.00020669,2]
[331274124,1720170641550,-500.0,0.00020669,2]
[331274125,1720170641560,-500.0,0.00020669,2]
[331274126,1720170641570,-500.0,0.00020669,2]
[331274127,1720170641579,-500.0,0.00020669,2]
[331274128,1720170641588,-500.0,0.00020669,2]
[331274129,1720170641598,-500.0,0.00020669,2]
[331274130,1720170641607,-500.0,0.00020669,2]
[331274131,1720170641617,-500.0,0.00020669,2]
[331274132,1720170641632,-500.0,0.00020669,2]
[331274133,1720170641642,-500.0,0.00020669,2]
[331274134,1720170641656,-500.0,0.00020669,2]
[331274135,1720170641669,-500.0,0.00020669,2]
[331274136,1720170641679,-500.0,0.00020669,2]
[331274137,1720170641690,-500.0,0.00020669,2]
[331274138,1720170641700,-500.0,0.00020669,2]
[331274139,1720170641712,-500.0,0.00020669,2]
[331274140,1720170641723,-500.0,0.00020669,2]
[331274141,1720170641733,-500.0,0.00020669,2]
[331274142,1720170641743,-127086.886454,0.0002067,3]
[331274143,1720170641752,-263490.661881,0.0002067,3]
[331274144,1720170641763,-150.83,0.0002067,2]
[331274145,1720170641780,-150.83,0.0002067,2]
[331274146,1720170641801,-150.83,0.0002067,2]
[331274147,1720170641811,-150.83,0.0002067,2]
[331274148,1720170641821,-150.83,0.0002067,2]
[331274149,1720170641833,-150.83,0.0002067,2]
[331274150,1720170641843,-150.83,0.0002067,2]
[331274151,1720170641853,-150.83,0.0002067,2]
[331274152,1720170641863,-150.83,0.0002067,2]
[331274153,1720170641874,-150.83,0.0002067,2]
[331274154,1720170641883,-150.83,0.0002067,2]
[331274155,1720170641893,-150.83,0.0002067,2]
[331274156,1720170641903,-150.83,0.0002067,2]
[331274157,1720170641913,-150.83,0.0002067,2]
[331274158,1720170641922,-2000.0,0.00020679,2]
[331274159,1720170641932,-270.22363475,0.00020679,2]
[331274160,1720170641942,-574.58233507,0.00020679,2]
[331274161,1720170641952,-500.0,0.00020679,2]
[331274162,1720170641962,-244.07579236,0.00020679,2]
[331274163,1720170641972,-500.0,0.00020679,2]
[331274164,1720170641982,-500.0,0.00020679,2]
[331274165,1720170641993,-317.27899868,0.00020679,2]
[331274166,1720170642003,-500.0,0.00020679,2]
[331274167,1720170642014,-500.0,0.00020679,2]
[331274168,1720170642309,-500.0,0.00020679,2]
[331274169,1720170642328,-500.0,0.00020679,2]
[331274170,1720170642337,-500.0,0.00020679,2]
[331274171,1720170642346,-599.99999999,0.00020679,2]
[331274172,1720170642355,-1784.0,0.0002068,2]
[331274173,1720170642364,-287674.32618247,0.0002068,2]
[331274174,1720170642376,-840687.78500563,0.0002068,2]
[331274175,1720170642385,-684.0,0.00020685,2]
[331274176,1720170642395,-518.199881,0.00020696,2]
[331274177,1720170642404,-492.590815,0.00020696,2]
[331274178,1720170642413,-359.830312,0.00020696,2]
[331274179,1720170642423,-184.46049,0.00020696,2]
[331274180,1720170642432,-164.150387,0.00020696,2]
[331274181,1720170642441,-178.336135,0.00020696,2]
[331274182,1720170642450,-2100.0,0.000207,7]
[331274183,1720170642459,-374.3,0.000207,2]
[331274184,1720170642468,-169.41225713,0.00020735,2]
[331274185,1720170642477,-250.68822739,0.0002078,2]
[331274186,1720170642486,-1539.08235498,0.00020795,2]
[331274187,1720170642496,-3200.0,0.000208,7]
[331274188,1720170642506,-1613.0,0.00020809,2]
[331274189,1720170642516,-169.41225713,0.00020817,2]
[331274190,1720170642526,-4200.0,0.000209,7]
[331274191,1720170642535,-4931.19788667,0.000209,2]
[331274192,1720170642545,-169.41225713,0.000209,2]
[331274193,1720170642555,-183.61798212,0.000209,2]
[331274194,1720170642564,-504.16691564,0.00020901,2]
[331274195,1720170642573,-194.44,0.00020944,2]
[331274197,1720170642583,-518.199881,0.00020954,2]
[331274199,1720170642592,-492.590815,0.00020954,2]
[331274201,1720170642602,-359.830312,0.00020954,2]
[331274203,1720170642612,-150.83,0.00020987,2]
[331274205,1720170642624,-150.83,0.0002099,2]
[331274207,1720170642636,-150.83,0.0002099,2]
[331274209,1720170642646,-150.83,0.0002099,2]
[331274211,1720170642655,-86105.62848867,0.00020997,3]
[331274213,1720170642666,-39228.95838581,0.00021,2]
[331274215,1720170642675,-225.05601143,0.00021,2]
[331274217,1720170642685,-396.69438751,0.00021,5]
[331274218,1720170642695,-204534.29461669,0.00021,3]
[331274220,1720170642706,-284.87904521,0.00021,2]
[331274223,1720170642716,-2013.65375979,0.00021,3]
[331274225,1720170642725,-1539.08235498,0.00021004,2]
[331274227,1720170642735,-716.63369653,0.00021012,2]
[331274229,1720170642745,-27096.0,0.00021014,2]
[331274230,1720170642755,-150.83,0.0002106,2]
[331274231,1720170642764,-50000.0,0.0002107,2]
[331274232,1720170642775,-186.609633,0.00021141,2]
[331274233,1720170642799,-164.196938,0.00021141,2]
[331274234,1720170642810,-237.024668,0.00021141,2]
[331274235,1720170642820,-171.900128,0.00021141,2]
[331274236,1720170642830,-187.833063,0.00021141,2]
[331274237,1720170642840,-1988.595877,0.00021141,2]
[331274238,1720170642850,-2751.640942,0.00021141,2]
[331274239,1720170642860,-180.882049,0.00021141,2]
[331274240,1720170642869,-385.954914,0.00021141,2]
[331274241,1720170642879,-183.327672,0.00021141,2]
[331274242,1720170642889,-187.252943,0.00021141,2]
[331274243,1720170642899,-174.779573,0.00021141,2]
[331274244,1720170642910,-185.66455591,0.00021161,2]
[331274245,1720170642919,-518.199881,0.00021213,2]
[331274246,1720170642929,-492.590815,0.00021213,2]
[331274247,1720170642939,-359.830312,0.00021213,2]
[331274248,1720170642948,-178.336135,0.00021213,2]
[331274249,1720170642958,-1539.08235498,0.00021214,2]
[331274250,1720170642968,-504.16691564,0.00021232,2]
[331274251,1720170642979,-180.0,0.00021397,2]
[331274252,1720170642989,-237.024668,0.00021405,2]
[331274253,1720170642998,-171.900128,0.00021405,2]
[331274254,1720170643008,-187.833063,0.00021405,2]
[331274255,1720170643018,-1988.595877,0.00021405,2]
[331274256,1720170643030,-2751.640942,0.00021405,2]
[331274257,1720170643049,-385.954914,0.00021405,2]
[331274258,1720170643058,-1539.08235498,0.00021423,2]
[331274259,1720170643069,-518.199881,0.00021472,2]
[331274260,1720170643078,-492.590815,0.00021472,2]
[331274261,1720170643088,-359.830312,0.00021472,2]
[331274262,1720170643099,-150.83,0.00021488,2]
[331274263,1720170643109,-150.83,0.00021488,2]
[331274264,1720170643119,-133065.90915318,0.00021498,2]
[331274265,1720170643129,-51315.25286307,0.00021498,2]
[331274266,1720170643140,-2000.0,0.00021501,2]
[331274267,1720170643151,-1936.0,0.00021507,2]
[331274268,1720170643162,-24115.0,0.00021507,2]
[331274269,1720170643172,-450.0,0.0002151,2]
[331274270,1720170643182,-504.16691564,0.00021564,2]
[331274271,1720170643191,-447.1143,0.0002157,2]
[331274272,1720170643201,-545.47,0.00021619,2]
[331274273,1720170643211,-1539.08235498,0.00021633,2]
[331274274,1720170643222,-195.22,0.00021644,2]
[331274275,1720170643232,-338.97,0.00021644,2]
[331274276,1720170643242,-154.74,0.00021644,2]
[331274277,1720170643251,-332.43,0.00021644,2]
[331274278,1720170643260,-186.609633,0.00021669,2]
[331274279,1720170643270,-237.024668,0.00021669,2]
[331274280,1720170643286,-171.900128,0.00021669,2]
[331274281,1720170643296,-187.833063,0.00021669,2]
[331274282,1720170643305,-1988.595877,0.00021669,2]
[331274283,1720170643314,-2751.640942,0.00021669,2]
[331274284,1720170643323,-385.954914,0.00021669,2]
[331274285,1720170643333,-396.0,0.0002168,3]
[331274286,1720170643342,-150.83,0.0002169,2]
[331274287,1720170643353,-150.83,0.0002169,2]
[331274288,1720170643362,-150.83,0.0002169,2]
[331274289,1720170643372,-150.83,0.0002169,2]
[331274290,1720170643381,-155.38465714,0.00021699,2]
[331274291,1720170643390,-250000.0,0.000217,2]
[331274292,1720170643400,-3309.99,0.000217,2]
[331274293,1720170643411,-87096.05151388,0.000217,2]
[331274294,1720170643420,-518.199881,0.0002173,2]
[331274295,1720170643430,-492.590815,0.0002173,2]
[331274296,1720170643440,-359.830312,0.0002173,2]
[331274297,1720170643450,-164.150387,0.0002173,2]
[331274298,1720170643459,-178.336135,0.0002173,2]
[331274299,1720170643468,-163.72600367,0.00021735,2]
[331274300,1720170643478,-185.66455591,0.00021738,2]
[331274301,1720170643487,-6281.61778263,0.0002178,2]
[331274302,1720170643497,-150.83,0.00021807,2]
[331274303,1720170643507,-427.111,0.00021817,2]
[331274304,1720170643516,-150.0,0.00021819,2]
[331274305,1720170643526,-2019.62512008,0.00021838,2]
[331274306,1720170643543,-1539.08235498,0.00021842,2]
[331274307,1720170643553,-235.759,0.00021856,2]
[331274308,1720170643563,-155.0,0.00021859,2]
[331274309,1720170643573,-4931.19788666,0.00021895,2]
[331274310,1720170643582,-504.16691564,0.00021895,2]
[331274311,1720170643592,-8732.0,0.000219,2]
[331274312,1720170643601,-982.0,0.000219,4]
[331274313,1720170643611,-1000.0,0.00021917,2]
[331274314,1720170643620,-1000.0,0.00021917,2]
[331274315,1720170643633,-1000.0,0.00021917,2]
[331274316,1720170643644,-538.42,0.00021917,2]
[331274317,1720170643654,-855.94,0.00021918,2]
[331274318,1720170643663,-150.0,0.00021918,2]
[331274319,1720170643673,-178.36,0.00021918,2]
[331274320,1720170643684,-237.024668,0.00021933,2]
[331274321,1720170643693,-171.900128,0.00021933,2]
[331274322,1720170643703,-187.833063,0.00021933,2]
[331274323,1720170643712,-1988.595877,0.00021933,2]
[331274324,1720170643722,-2751.640942,0.00021933,2]
[331274325,1720170643733,-385.954914,0.00021933,2]
[331274326,1720170643742,-607.72,0.00021941,2]
[331274327,1720170643752,-150.83,0.0002199,2]
[331274328,1720170643762,-500.50965335,0.00021996,2]
[331274329,1720170643775,-1006.5851,0.00021999,2]
[331274330,1720170643792,-861.44299302,0.00022,2]
[331274331,1720170643803,-84162.61002766,0.00022,4]
[331274332,1720170643935,-3095.03282602,0.00022,4]
[331274333,1720170643947,-1451.33807564,0.00022,4]
[331274334,1720170643959,-8208.53520196,0.00022,4]
[331274335,1720170643971,-1197.01998799,0.00022,4]
[331274336,1720170643985,-1509.48328242,0.00022,4]
[331274337,1720170643996,-608.65292374,0.00022,4]
[331274338,1720170644008,-609.78714,0.00022,4]
[331274339,1720170644020,-1924.09839103,0.00022,4]
[331274340,1720170644039,-30583.00247592,0.00022,4]
[331274341,1720170644050,-7783.2157814,0.00022,4]
[331274342,1720170644062,-14778.235088,0.00022,4]
[331274343,1720170644152,-602.00767301,0.00022,4]
[331274344,1720170644164,-1873.3,0.00022,4]
[331274345,1720170644175,-2923.15264686,0.00022,4]
[331274384,1720170648085,-35591.7209191,0.00013999,2]
[331274385,1720170648094,-1659.0,0.0002068,2]
[331274386,1720170648103,-151.64,0.00021505,2]
[331274387,1720170648113,-113690.52847835,0.00022,4]
[331274388,1720170648123,-793.21748259,0.00022,2]
[331274389,1720170648133,-150.0,0.00022,2]
[331274390,1720170648142,-89721.38071549,0.00022,2]
[331274391,1720170648151,-1539.08235498,0.00022052,2]
[331274392,1720170648160,-680.88614568,0.00022058,2]
[331274393,1720170648170,-154.07702162,0.00022074,2]
[331274394,1720170648179,-2400.64933239,0.0002209,2]
[331274395,1720170648188,-169.58254383,0.00022114,2]
[331274396,1720170648198,-12358.72735756,0.00022144,3]
[331274397,1720170648207,-500.0,0.0002218,2]
[331274398,1720170648219,-500.0,0.00022189,2]
[331274399,1720170648229,-1000.0,0.00022191,4]
[331274400,1720170648242,-240.3073481,0.00022191,4]
[331274401,1720170648251,-186.609633,0.00022198,2]
[331274402,1720170648260,-183.327672,0.00022198,2]
[331274403,1720170648270,-187.252943,0.00022198,2]